Cogmind - Beta 17 @@@ ROGUE MODE // 2026.06.26 @ 16:23:16 Player: Cynthion21x Result: Destroyed by G-47 Trooper with Particle Gun Performance ------------- Evolutions (2) 1000 Regions Visited (4) 800 Robots Destroyed (28) 140 Value Destroyed (633) 633 Prototype IDs (1) 20 Alien Tech Used (0) 0 Bonus (0) 0 TOTAL SCORE: 2593 Bonus ------- None Cogmind --------- Core Integrity 0/550 Matter 73/300 Energy 69/100 System Corruption 0% Temperature Hot (216) Movement Walking (90) Location -8/Materials Parts ------- > --- POWER (2) -------- (None) > --- PROPULSION (4) --- VSS Leg > --- UTILITY (3) ------ Targeting Computer System Shield > --- WEAPON (2) ------- (None) > --- INVENTORY (5) ---- Aluminum Leg Aluminum Leg Peak State ------------ > --- POWER ------------ Light Ion Engine Light Nuclear Core > --- PROPULSION ------- Aluminum Leg Aluminum Leg VSS Leg VSS Leg > --- UTILITY ---------- Small Storage Unit Targeting Computer System Shield > --- WEAPON ----------- Advanced Beam Rifle Assault Cannon > --- INVENTORY -------- Aluminum Leg Aluminum Leg VSS Leg VSS Leg Assault Cannon [Rating: 25] Favorites ----------- Power Light Ion Engine Engine Light Ion Engine Power Core Light Nuclear Core Propulsion Aluminum Leg Leg Aluminum Leg Flight Unit Flight Unit Utility Small Storage Unit Device Seismic Detector Storage Small Storage Unit Processor Targeting Computer Hackware System Shield Weapon Assault Cannon Energy Gun Heavy EM Pulse Gun Ballistic Gun Light Assault Rifle Ballistic Cannon Assault Cannon Build | -11 -10 -10 -9 -8 ------- Run | Yrd Mat Min Mat Mat Slots Evolved 4 | . . . 2 2 Power 1 | . . . . 1 Propulsion 2 | . . . 2 . Utility 1 | . . . . 1 Weapon . | . . . . . Parts Attached 30 | 6 . 3 13 8 Power 6 | 1 . . 2 3 Engine 4 | 1 . . 2 1 Core 2 | . . . . 2 Reactor . | . . . . . Propulsion 10 | 2 . 2 6 . Treads . | . . . . . Leg 8 | 2 . . 6 . Wheel . | . . . . . Hover . | . . . . . Flight 2 | . . 2 . . Utility 4 | 1 . 1 1 1 Device 1 | . . 1 . . Storage 1 | 1 . . . . Processor 1 | . . . 1 . Hackware 1 | . . . . 1 Protection . | . . . . . Artifact . | . . . . . Weapon 10 | 2 . . 4 4 Energy Gun 4 | . . . 2 2 Energy Cannon . | . . . . . Ballistic Gun 2 | 2 . . . . Ballistic Cannon 4 | . . . 2 2 Launcher . | . . . . . Special Weapon . | . . . . . Impact Weapon . | . . . . . Slashing Weapon . | . . . . . Piercing Weapon . | . . . . . Special Melee Weapon . | . . . . . Unidentified Prototypes 1 | . . . . 1 Parts Lost 19 | . . . 2 17 Power 5 | . . . . 5 Propulsion 5 | . . . . 5 Utility 1 | . . . . 1 Weapon 8 | . . . 2 6 Highest Loss Streak 15 | . . . 2 15 To Critical Strikes . | . . . . . Average Backups 5 | 3 4 6 6 5 Power 1 | . 1 2 2 . Propulsion 2 | 1 2 2 2 3 Utility . | . . . . . Weapon 1 | . 1 1 1 . Tool/Special . | . . . . . Unused Backups 6 | . . 1 5 . Power . | . . . . . Propulsion 3 | . . 1 2 . Utility . | . . . . . Weapon 3 | . . . 3 . Tool/Special . | . . . . . Average Slot Usage (%) 86 | . 85 88 92 80 Engine 11 | . 14 14 11 9 Leg 31 | . 28 26 37 30 Device 1 | . . 3 . . Storage 11 | . 14 14 11 8 Processor 5 | . . . 10 9 Hackware 1 | . . . . 3 Energy Gun 5 | . . . 11 6 Ballistic Gun 12 | . 28 28 1 . Ballistic Cannon 5 | . . . 8 9 Peak Build Rating 25 | 6 6 7 19 25 Average Rating 11 | 3 6 6 14 19 On Entrance 7 | . 6 6 7 18 Avg Prop Armor Cover (%) 3 | . . . 3 . Naked Turns . | . . . . . Heaviest Build 23 | 11 11 12 20 23 Greatest Support 44 | 20 20 20 44 44 Greatest Overweight (x) 4 | . . 1 . 4 Average Overweight (x) . | . . . . . Largest Inventory Capacity 8 | 8 8 8 8 8 Average Capacity 7 | 5 8 8 8 7 Most Carried 8 | 5 5 8 8 8 Average Carried 5 | 3 4 6 6 5 Final Capacity 8 | 8 8 8 8 5 Final Carried 7 | 4 5 7 7 2 Class Distribution -------------------- 96% | Mutant 3% | Scavenger-Mutant Dominant Class ---------------- Mutant | -10/Materials Mutant | -10/Mines Mutant | -9/Materials Mutant | -8/Materials Resources | -11 -10 -10 -9 -8 ----------- Run | Yrd Mat Min Mat Mat Matter Collected 735 | 54 . 122 263 296 Remotely . | . . . . . Salvage Created 684 | . . 122 200 362 Parts 50 | . . 14 18 18 Haulers Intercepted . | . . . . . Recyclers Shooed . | . . . . . Parts Field Recycled . | . . . . . Retrieved Matter . | . . . . . Parts Self-Destructed . | . . . . . Prevented . | . . . . . Parts Restored . | . . . . . Kills | -11 -10 -10 -9 -8 ------- Run | Yrd Mat Min Mat Mat Combat Hostiles Destroyed 24 | . . 6 7 11 Guns 12 | . . 6 3 3 Cannons 11 | . . . 3 8 AOE 1 | . . . 1 . Classes Destroyed 7 | . . 2 3 2 Builder 1 | . . . 1 . Tunneler 2 | . . 1 . 1 Mechanic 1 | . . . . 1 Swarmer 14 | . . 6 4 4 Grunt 6 | . . . 1 5 Duelist 1 | . . . . 1 Sentry 3 | . . . 2 1 Best Kill Streak 5 | . . 3 5 5 Combat Bots Only 5 | . . 3 5 4 Max Kills in Single Turn 1 | . . 1 1 1 Gunslinging . | . . . . . Exploded 1 | . . . 1 . Melee . | . . . . . Uniques/NPCs Destroyed . | . . . . . Combat | -11 -10 -10 -9 -8 -------- Run | Yrd Mat Min Mat Mat Hostile Shots Fired 283 | . . 34 44 205 Missed 68 | . . 10 15 43 Hits 215 | . . 24 29 162 Melee 2 | . . . . 2 Projectile 213 | . . 24 29 160 Critical Strikes 9 | . . . 1 8 Damage Taken 2750 | . . 188 345 2217 Core 652 | . . 60 29 563 Absorbed by Shields . | . . . . . Core Remaining (%) 89 | 100 . 76 92 . Volleys Fired 86 | . . 15 17 54 Largest 2 | . . 2 2 2 Hottest 98 | . . 40 90 98 Shots Fired 147 | . . 30 30 87 Gun 96 | . . 30 20 46 Cannon 51 | . . . 10 41 Launcher . | . . . . . Special . | . . . . . Kinetic 81 | . . 30 10 41 Thermal 46 | . . . . 46 Explosive . | . . . . . Electromagnetic 20 | . . . 20 . Robot Hit Streak 8 | . . 5 6 8 Robot Miss Streak 6 | . . 6 3 5 Penetration Max . | . . . . . Secondary Targets 1 | . . 1 . . Max Gunslinging Chain 1 | . . 1 . . Shots Hit Robots 85 | . . 18 17 50 Core Hits 37 | . . 9 10 18 Critical Kills 1 | . . 1 . . Critical Parts Destroyed . | . . . . . Critical Strikes 5 | . . 1 . 4 Burn 3 | . . . . 3 Destroy 1 | . . 1 . . Blast 1 | . . . . 1 Melee Attacks . | . . . . . Impact . | . . . . . Slashing . | . . . . . Piercing . | . . . . . Sneak Attacks . | . . . . . Combat Hostiles . | . . . . . Follow-up Attacks . | . . . . . Damage Inflicted 1688 | . . 190 391 1107 Guns 869 | . . 190 155 524 Cannons 707 | . . . 124 583 Explosions 112 | . . . 112 . Melee . | . . . . . Ramming . | . . . . . Kinetic 897 | . . 190 124 583 Thermal 636 | . . . 112 524 Explosive . | . . . . . Electromagnetic 155 | . . . 155 . Impact . | . . . . . Slashing . | . . . . . Piercing . | . . . . . Highest Corruption . | . . . . . Average Corruption . | . . . . . Corruption Purged . | . . . . . Corruption Blocked . | . . . . . Overload Shots . | . . . . . Overflow Damage 39 | . . . 8 31 Projectiles 31 | . . . . 31 Explosions 8 | . . . 8 . Melee . | . . . . . Knockbacks 6 | . . . . 6 Impact . | . . . . . Kinetic 6 | . . . . 6 Secondary . | . . . . . Self-Inflicted Damage 56 | . . . 56 . Shots 2 | . . . 2 . Rammed . | . . . . . Targets Rammed . | . . . . . Kicked . | . . . . . Crushed . | . . . . . Highest Temperature 507 | . . . 137 507 Average Temperature 137 | . . . 61 157 Received Heat Transfer 1185 | . . . 69 1116 Effects 7 | . . . . 7 Shutdowns 1 | . . . . 1 Interference 2 | . . . . 2 Matter Decay 3 | . . . . 3 Short Circuit 1 | . . . . 1 Siege Activations . | . . . . . Martial Activations . | . . . . . Shielding Activations . | . . . . . Robots Disrupted . | . . . . . Combat Hostiles . | . . . . . Robots Corrupted . | . . . . . Combat Hostiles . | . . . . . Parts Fried 1 | . . . 1 . Impact Corruptions . | . . . . . Robots Melted . | . . . . . Combat Hostiles . | . . . . . Parts Melted 4 | . . . . 4 Heat Transferred 1495 | . . . 200 1295 Parts Sabotaged . | . . . . . Parts Stolen . | . . . . . Parts Stripped . | . . . . . Power Chain Reactions 3 | . . . 3 . Alert | -11 -10 -10 -9 -8 ------- Run | Yrd Mat Min Mat Mat Maximum Alert Level . | . . . . . Low Security (%) 100 | 100 100 100 100 100 Level 1 . | . . . . . Level 2 . | . . . . . Level 3 . | . . . . . Level 4 . | . . . . . Level 5 . | . . . . . High Security . | . . . . . Max Security . | . . . . . Peak Influence 110 | . 14 91 107 110 Initial 31 | . . 1 5 31 Average 38 | . . 48 42 55 Influence Increases 732 | . 19 145 216 352 Destroy 0b10 Robot/C 480 | . . 120 140 220 Destroy 0b10 Robot/NC 20 | . . 5 5 10 Destroy Leader 90 | . . 20 30 40 Successful Hack 27 | . 19 . 8 . Disable Machine 15 | . . . 15 . Destroy Structure 25 | . . . 18 7 Lose Combat Pursuer 75 | . . . . 75 Influence Decreases 659 | . 15 133 157 354 Entered New Map 58 | . . 3 11 44 Time Decay 411 | . 15 130 126 140 Lost Part 190 | . . . 20 170 Squads Dispatched 5 | . . . 1 4 Investigation . | . . . . . Extermination . | . . . . . Reinforcement 3 | . . . 1 2 Assault . | . . . . . Garrison 2 | . . . . 2 Intercept . | . . . . . Searches Triggered . | . . . . . Construction Impeded . | . . . . . Haulers Reinforced . | . . . . . Active Scanning Responses . | . . . . . Cargo Convoy Interrupts . | . . . . . Stealth | -11 -10 -10 -9 -8 --------- Run | Yrd Mat Min Mat Mat Distress Signals 2 | . . . . 2 Communications Jammed . | . . . . . Distress Signals . | . . . . . Times Spotted 40 | . . 9 7 24 Peak Tracking Total 10 | . . 3 5 10 Tactical Retreats 1 | . . . . 1 Traps | -11 -10 -10 -9 -8 ------- Run | Yrd Mat Min Mat Mat Traps Triggered . | . . . . . Indirectly . | . . . . . Trap Hack Attempts . | . . . . . Triggered . | . . . . . Disarmed 6 | . . . 6 . Reprogrammed . | . . . . . Reused . | . . . . . Traps Extracted . | . . . . . Installed . | . . . . . Triggered . | . . . . . Machines | -11 -10 -10 -9 -8 ---------- Run | Yrd Mat Min Mat Mat Machines Disabled 1 | . . . 1 . Max in Single Turn 1 | . . . 1 . Machines Repaired . | . . . . . Machines Dismantled . | . . . . . Machines Sabotaged . | . . . . . Overloaded Fab Kills . | . . . . . Hacking | -11 -10 -10 -9 -8 --------- Run | Yrd Mat Min Mat Mat Machines Accessed 4 | . 2 . 2 . Terminals 4 | . 2 . 2 . Fabricators . | . . . . . Repair Stations . | . . . . . Recycling Units . | . . . . . Scanalyzers . | . . . . . Garrison Access . | . . . . . Total Hacks 10 | . 2 . 8 . Successful 5 | . 2 . 3 . Failed 5 | . . . 5 . Catastrophic 2 | . . . 2 . Database Lockouts . | . . . . . Manual . | . . . . . Terminals 10 | . 2 . 8 . Fabricators . | . . . . . Repair Stations . | . . . . . Recycling Units . | . . . . . Scanalyzers . | . . . . . Garrison Access . | . . . . . Terminal Hacks 5 | . 2 . 3 . Robot Analysis 1 | . 1 . . . Emergency Access Points 1 | . . . 1 . Disarm Traps 1 | . . . 1 . Dispatch Records 2 | . 1 . 1 . Fabricator Hacks . | . . . . . Repair Station Hacks . | . . . . . Recycling Unit Hacks . | . . . . . Scanalyzer . | . . . . . Garrison Access Hacks . | . . . . . Unauthorized Hacks . | . . . . . Terminals . | . . . . . Fabricators . | . . . . . Repair Stations . | . . . . . Recycling Units . | . . . . . Scanalyzers . | . . . . . Garrison Access . | . . . . . Data Cores Recovered . | . . . . . Used . | . . . . . Hacking Detections 4 | . 2 . 2 . Full Trace Events 1 | . . . 1 . Feedback Events . | . . . . . Feedback Blocked . | . . . . . Robot Schematics Acquired . | . . . . . Robots Built . | . . . . . Authchips . | . . . . . Time . | . . . . . Total Robot Build Rating . | . . . . . Part Schematics Acquired . | . . . . . Parts Built . | . . . . . Authchips . | . . . . . Time . | . . . . . Total Part Build Rating . | . . . . . Part Studies Acquired . | . . . . . Parts Repaired . | . . . . . Time . | . . . . . Parts Recycled . | . . . . . Recycled Matter . | . . . . . Retrieved Matter . | . . . . . Retrieved Components . | . . . . . Parts Scanalyzed . | . . . . . Part Schematics Acquired . | . . . . . Parts Damaged . | . . . . . Bothacking | -11 -10 -10 -9 -8 ------------ Run | Yrd Mat Min Mat Mat Used RIF Installer . | . . . . . Robots Hacked . | . . . . . Non-combat . | . . . . . Combat . | . . . . . Robot Hacks Applied . | . . . . . Relay Couplers Released . | . . . . . Fabnet Peak Effective % . | . . . . . Robots Rewired . | . . . . . Allies Hacked . | . . . . . Hacks Repelled . | . . . . . Allies | -11 -10 -10 -9 -8 -------- Run | Yrd Mat Min Mat Mat Total Allies . | . . . . . Largest Group . | . . . . . Highest-Rated Group . | . . . . . Highest-Rated Ally . | . . . . . Total Orders . | . . . . . Ally Attacks . | . . . . . Total Damage . | . . . . . Kills . | . . . . . Allies Corrupted . | . . . . . Allies Melted . | . . . . . Intel | -11 -10 -10 -9 -8 ------- Run | Yrd Mat Min Mat Mat Active Infowar (turns) 90 | . . 80 10 . Seismic 90 | . . 80 10 . Robot Analysis Total 1 | . 1 . . . Derelict Logs Recovered . | . . . . . Drone Launches . | . . . . . Drone Recoveries . | . . . . . Exploration | -11 -10 -10 -9 -8 ------------- Run | Yrd Mat Min Mat Mat Turns Passed 1154 | 86 156 278 345 289 Spaces Moved 703 | 68 130 176 218 111 Core 18 | 15 . . . 3 Treads . | . . . . . Legs 684 | 53 130 175 218 108 Wheels . | . . . . . Hover . | . . . . . Flight 1 | . . 1 . . Fastest Speed 50 | 50 120 117 90 90 Average Speed 114 | 104 120 122 112 105 Slowest Speed 250 | 120 120 190 120 250 Overloaded Moves . | . . . . . Propulsion Burnouts . | . . . . . Robots Hopped . | . . . . . Potential Cave-ins . | . . . . . Cave-ins Triggered . | . . . . . Exploration Rate (%) 19 | 4 28 32 19 15 Regions Visited 4 Branch Regions 1 Pre-discovered Areas . | . . . . . Known Exits Taken . | . . . . . Unknown Exits Taken 4 | 1 1 1 1 . Scrap Searched . | . . . . . Spaces Dug . | . . . . . Terrain Destroyed 23 | . . . 18 5 Melee . | . . . . . Projectile 5 | . . . . 5 AOE 18 | . . . 18 . Terrain Rammed . | . . . . . Walls Destroyed . | . . . . . Machines Disabled . | . . . . . Actions | -11 -10 -10 -9 -8 --------- Run | Yrd Mat Min Mat Mat Total 919 | 83 130 218 292 196 Wait 27 | . . 3 12 12 Move 699 | 67 129 175 217 111 Hop . | . . . . . Pick Up 43 | 10 1 10 16 6 Fast Attach . | . . . . . Attach 34 | 6 . 6 10 12 Detach 5 | . . 2 2 1 Swap 6 | . . . 6 . Drop 19 | . . 7 12 . Fire 86 | . . 15 17 54 Melee . | . . . . . Ram . | . . . . . Kick . | . . . . . Crush . | . . . . . Escape Stasis . | . . . . . Rewire . | . . . . . Trap . | . . . . . Miscellaneous . | . . . . . Route ------- -11/Scrapyard -10/Materials -10/Mines -9/Materials -8/Materials History --------- Turn | Location | Event 7 | -11/Scrapyard | Discovered new exit (range 16) 87 | -11/Scrapyard | Entered Materials 192 | -10/Materials | Discovered new exit (range 16) 243 | -10/Materials | Entered Mines 338 | -10/Mines | Build established: Mutant 512 | -10/Mines | Discovered new exit (range 9) 521 | -10/Mines | Entered Materials 521 | -9/Materials | Evolved 2 slots: Propulsion x2 851 | -9/Materials | Discovered new exit (range 8) 866 | -9/Materials | Entered another Materials area 866 | -8/Materials | Evolved 2 slots: Power x1, Utility x1 975 | -8/Materials | Garrison activated, responded to threat 1085 | -8/Materials | Garrison activated, responded to threat 1108 | -8/Materials | Core integrity fell below 50% 1140 | -8/Materials | Core integrity fell below 20% 1155 | -8/Materials | Destroyed by G-47 Trooper with Particle Gun Last Messages --------------- U-05 Engineer destroyed. K-01 Serf cleans the Terminal. K-01 Serf collects debris. K-01 Serf cleans the Terminal. Acquired Assault Cannon. [Achievement: Hydra] Critical hit (Burn: +37). L-31 Rogue knocked back. Sml. Storage Unit destroyed. L-31 Rogue knocked back. L-31 Rogue destroyed. Critical hit (Burn: +37). G-47 Trooper destroyed. L-31 Rogue knocked back. VSS Leg destroyed. U-05 Engineer builds a Wall. Assault Cannon destroyed. Y-45 Defender destroyed. Assault Cannon destroyed. Critical hit (Burn: +37). Map ----- +----------------------------------------------------+ | ????????????????????? | | ????????????????????? | | ????????????????????? /!! ##+ | | ??????????????????????""" """ """ /!! #?? | | ?????????????????? ?""" """ """ !! #?? | | ??????????????????!! """ """ """ "" #?? | | ?????????????????!! G" #?? | | ?????????????????!! "" #?? | | ????????????????? ! +?? | | ????????????????? % #?? | | ???????????????????######"#### ############# ##?? | | ?????????????????????????????# !#?????????????#??? | | ?????????????????????????????#==#????????????????? | | ?????????????????????????###?#=!#????????????????? | | ???????????????????????### ###*%#????????????????? | | ???????????????????????# #%=#????????????????? | | ???????????????????????#"" #||#????????????????? | | ???????????????????????#"T #* #????????????????? | | ???????????????????????#"" # #????????????????? | | ???????????????????????# %g# #### ????? | | ???????????????????????# gg/ ????? | | ???????????????????????# %%# #?????????? | | ???????????????????????# !!%[# [ ]!#?????????? | | ???????????????????????#%% = # ] #?????????? | | ???????????????????????# /l! # #?????????? | | ???????????????????????#%@! ; #?????????? | | ???????????????????????# !! ^+ +?????????? | | ???????????????????????#######+#### #?????????? | | ??????????????????????????????????? #?????????? | | ???????????????????????????????????? #?????????? | | ???????????????????????????????????? #?????????? | | ????????????????????????????????????? #?????????? | | ?????????????????????????????????????? ??????????? | | ?????????????????????????????????????????????????? | | ?????????????????????????????????????????????????? | | ?????????????????????????????????????????????????? | | ?????????????????????????????????????????????????? | | ?????????????????????????????????????????????????? | | ?????????????????????????????????????????????????? | | ?????????????????????????????????????????????????? | | ?????????????????????????????????????????????????? | | ?????????????????????????????????????????????????? | | ?????????????????????????????????????????????????? | | ?????????????????????????????????????????????????? | | ?????????????????????????????????????????????????? | | ?????????????????????????????????????????????????? | | ?????????????????????????????????????????????????? | | | | | | | +----------------------------------------------------+ Best States ------------- Heat Dissipation 31 Energy Generation 23 Energy Capacity 275 Matter Stores 252 Matter Capacity 300 Sight Range 16 Terrain Scan Density 10 Evasion (%) 55 Targeting Accuracy 5 Defensive Hacking 10 Item Schematics ----------------- None Robot Schematics ------------------ None Fabricated ------------ Nothing Repaired ---------- Nothing Studied --------- None Alien Tech Used ----------------- None Achievements -------------- Hydra Oops Risk Taker Sprinter Troublemaker Challenges ------------ None Game ------ Seed StructuralTargetRipper Manual? 0 Play Time 00:23:08 Cumulative 2.2 hours Start 2026.06.26 @ 15:05:16 End 2026.06.26 @ 16:23:16 Sessions 1 Manual Loads 0 Difficulty Rogue Special Mode None Game No. 9 Rogue 9 Adventurer 0 Explorer 0 Win Type - Total 0 Types 0/0/0/0/0/0/0/0/0/0 Lore% 0 Gallery% 4 Achievement% 5 Wizard Run 0 Options --------- Layout 1 ASCII 0 Keyboard 0 Movement Numpad Keybinds 0 Fullscreen 1 Font 24/X11 Map View 50x35 Zoom Use 0% Tactical HUD 0 Map Filters NONE Filters NONE Steam 1 RUN: 358a6963-3b5e-4538-aa9e-d1f35bf370a0